Cogmind - Beta 16 @@@ ROGUE MODE // 2025.12.22 @ 21:39:34 Player: FrigidRock Result: Destroyed self via exploding Network Hub Performance ------------- Evolutions (6) 3000 Regions Visited (28) 5600 Robots Destroyed (174) 870 Value Destroyed (6542) 6542 Prototype IDs (59) 1180 Alien Tech Used (0) 0 Bonus (4527) 4527 TOTAL SCORE: 21719 Bonus ------- High Alert Combat Kills 845 Follower Combat Kills 1819 Network Hubs Disabled 200 Met Data Miner 300 Met Imprinter 300 Was Imprinted 300 Met Warlord at Base 500 MAIN.C Attacked Warlord 500 Friendly Fire -237 Cogmind --------- Core Integrity 0/1150 Matter 295/300 Energy 64/100 System Corruption 8% Temperature Cool (0) Movement Core (50) Location -4/Hub_04(d) Parts ------- > --- POWER (2) -------- (None) > --- PROPULSION (7) --- Advanced Myomer Leg > --- UTILITY (8) ------ Improved System Shield > --- WEAPON (2) ------- (None) > --- INVENTORY (5) ---- Vortex Chain Reactor Experimental Matter Compressor (500) Vortex Lance (12) Peak State ------------ > --- POWER ------------ Reinforced Fission Core Particle Reactor > --- PROPULSION ------- Myomer Leg Myomer Leg Advanced Myomer Leg Advanced Myomer Leg Advanced Myomer Leg Advanced Myomer Leg Advanced Myomer Leg > --- UTILITY ---------- Advanced Heat Sink Medium Storage Unit Experimental Armor Integrity Analyzer Improved Transmission Jammer Centrium Medium Armor Plating Centrium Medium Armor Plating Improved Hacking Suite Improved System Shield > --- WEAPON ----------- Vortex Shotgun Vortex Shotgun > --- INVENTORY -------- Vortex Chain Reactor Experimental Matter Compressor Advanced ECM Suite Vortex Shotgun Vortex Shotgun Improved Proton Missile Launcher Vortex Lance [Rating: 142] Favorites ----------- Power Improved Deuterium Engine Engine Improved Deuterium Engine Power Core Fission Core Reactor Antimatter Reactor Propulsion Aluminum Leg Treads Advanced Medium Treads Leg Aluminum Leg Wheel Armored Wheel Flight Unit Cooled VTOL Module Utility Improved Heat Sink Device Improved Heat Sink Storage High-capacity Storage Unit Processor Advanced Targeting Computer Hackware Improved System Shield Protection Hardened Medium Armor Plating Weapon Ion Cannon Energy Gun Vortex Shotgun Energy Cannon Ion Cannon Ballistic Gun KE Penetrator Ballistic Cannon Advanced Assault Cannon Launcher Missile Launcher Impact Weapon Impact Mace Slashing Weapon Greatsword Piercing Weapon Vortex Lance Build | -11 -10 -10 -9 -9 -9 -8 -8 -7 -7 -7 -7 -6 -6 -6 -6 -6 -6 -6 -5 -5 -5 -5 -4 -4 -4 -4 -4 -4 ------- Run | Yrd Mat Min Mat Min Exi Min Mat Fac Low Low Zio Pro Fac Was Fac Low Low Dat Pro Fac Upp War Pro Fac Ext Cet Arc Hub Slots Evolved 12 | . . . 2 . . . 2 2 . . . . 2 . . . . . . 2 . . . 2 . . . . Power 1 | . . . . . . . . . . . . . 1 . . . . . . . . . . . . . . . Propulsion 5 | . . . 1 . . . 1 1 . . . . 1 . . . . . . 1 . . . . . . . . Utility 6 | . . . 1 . . . 1 1 . . . . . . . . . . . 1 . . . 2 . . . . Weapon . | . . . . . . . . . . . . . . . . . . . . . . . . . . . . . Parts Attached 207 | 6 3 . 10 7 . 5 44 17 6 3 4 2 6 . 19 1 . . 3 15 1 9 . 1 29 2 3 11 Power 21 | 1 . . 2 . . 1 3 1 . . . . 1 . 3 . . . . 3 . 1 . . 4 . 1 . Engine 12 | 1 . . 2 . . 1 3 1 . . . . 1 . 2 . . . . 1 . . . . . . . . Core 6 | . . . . . . . . . . . . . . . 1 . . . . 2 . . . . 3 . . . Reactor 3 | . . . . . . . . . . . . . . . . . . . . . . 1 . . 1 . 1 . Propulsion 73 | 2 . . 3 4 . 3 13 6 2 2 . . 4 . 4 . . . 2 3 . 1 . . 16 . . 8 Treads 3 | . . . . . . . . . . . . . . . . . . . . . . . . . 1 . . 2 Leg 41 | 2 . . 3 2 . 1 9 . 2 1 . . . . . . . . . . . . . . 15 . . 6 Wheel 16 | . . . . 2 . 2 4 6 . 1 . . 1 . . . . . . . . . . . . . . . Hover . | . . . . . . . . . . . . . . . . . . . . . . . . . . . . . Flight 13 | . . . . . . . . . . . . . 3 . 4 . . . 2 3 . 1 . . . . . . Utility 65 | 1 1 . 2 1 . 1 14 6 2 1 3 2 . . 9 . . . 1 6 1 3 . 1 6 2 2 . Device 30 | . 1 . 1 . . . 7 2 1 1 3 1 . . 4 . . . . 4 . 1 . . 4 . . . Storage 5 | 1 . . . . . 1 1 . . . . . . . . . . . . 1 . 1 . . . . . . Processor 6 | . . . . . . . 1 1 1 . . . . . 2 . . . . . . . . 1 . . . . Hackware 2 | . . . . . . . . . . . . . . . . . . . . . . . . . . . 2 . Protection 22 | . . . 1 1 . . 5 3 . . . 1 . . 3 . . . 1 1 1 1 . . 2 2 . . Artifact . | . . . . . . . . . . . . . . . . . . . . . . . . . . . . . Weapon 48 | 2 2 . 3 2 . . 14 4 2 . 1 . 1 . 3 1 . . . 3 . 4 . . 3 . . 3 Energy Gun 14 | . 2 . 2 . . . 5 . . . . . 1 . . . . . . . . 2 . . . . . 2 Energy Cannon 4 | . . . . . . . 2 . 2 . . . . . . . . . . . . . . . . . . . Ballistic Gun 14 | 2 . . 1 2 . . 2 2 . . . . . . 2 . . . . . . . . . 3 . . . Ballistic Cannon 8 | . . . . . . . 3 2 . . 1 . . . 1 . . . . . . . . . . . . 1 Launcher 2 | . . . . . . . 1 . . . . . . . . . . . . . . 1 . . . . . . Special Weapon . | . . . . . . . . . . . . . . . . . . . . . . . . . . . . . Impact Weapon 3 | . . . . . . . 1 . . . . . . . . . . . . 2 . . . . . . . . Slashing Weapon 2 | . . . . . . . . . . . . . . . . 1 . . . 1 . . . . . . . . Piercing Weapon 1 | . . . . . . . . . . . . . . . . . . . . . . 1 . . . . . . Special Melee Weapon . | . . . . . . . . . . . . . . . . . . . . . . . . . . . . . Unidentified Prototypes 19 | . . . 2 . . . 1 . . . 3 . 1 . 2 . . . . 2 . 5 . 1 . 1 . 1 Parts Lost 76 | . . . 7 5 . 4 19 7 2 1 . 4 . 2 . . 1 . 1 1 . . . . 3 1 1 17 Power 5 | . . . . . . 1 2 . . . . . . . . . . . . . . . . . . . . 2 Propulsion 28 | . . . 2 3 . 1 5 5 2 1 . 3 . . . . 1 . . 1 . . . . 1 . . 3 Utility 28 | . . . 2 1 . . 9 2 . . . 1 . 2 . . . . 1 . . . . . 1 1 1 7 Weapon 15 | . . . 3 1 . 2 3 . . . . . . . . . . . . . . . . . 1 . . 5 Highest Loss Streak 17 | . . . 4 3 . 4 6 3 2 1 . 3 . 2 . . 1 . 1 1 . . . . 2 1 1 17 To Critical Strikes 1 | . . . . 1 . . . . . . . . . . . . . . . . . . . . . . . . Average Backups 11 | 1 4 6 7 6 5 4 16 16 20 20 19 18 17 13 4 5 5 5 5 7 10 9 9 7 8 9 9 8 Power 1 | . 1 1 1 2 2 1 2 1 2 2 2 2 1 . . . . . . . 1 1 1 1 1 1 1 . Propulsion 1 | . 2 4 3 2 . 1 3 1 2 1 1 1 1 . . . . . . . . . . . . . . . Utility 4 | . . . . 1 1 1 4 4 8 8 9 9 9 8 4 4 4 4 3 5 7 6 4 2 2 2 2 1 Weapon 4 | . 1 1 1 1 2 . 5 9 8 8 7 6 6 4 . . 1 1 1 1 2 2 4 4 5 6 6 5 Tool/Special . | . . . . . . . . . . . . . . . . . . . . . . . . . . . . . Unused Backups 24 | . . . 2 . . . 6 3 . 1 1 . . 8 . . . . . . . . . . 3 . . . Power 4 | . . . 1 . . . 1 1 . . . . . 1 . . . . . . . . . . . . . . Propulsion 5 | . . . . . . . 1 . . 1 . . . 1 . . . . . . . . . . 2 . . . Utility 6 | . . . . . . . . . . . . . . 5 . . . . . . . . . . 1 . . . Weapon 9 | . . . 1 . . . 4 2 . . 1 . . 1 . . . . . . . . . . . . . . Tool/Special . | . . . . . . . . . . . . . . . . . . . . . . . . . . . . . Average Slot Usage (%) 91 | . 89 100 92 90 66 77 93 85 99 92 99 86 78 91 91 96 90 86 92 89 82 89 94 93 93 93 95 87 Engine 6 | . 14 14 11 11 11 10 8 7 7 7 7 7 9 13 6 6 6 6 6 5 5 5 5 5 1 . . . Core 1 | . . . . . . . . . . . . . . . 4 6 6 6 6 5 5 5 5 5 5 5 5 4 Leg 14 | . 28 28 32 27 11 10 24 . 6 15 15 8 . . . . . . . . . . . . 25 31 31 29 Wheel 9 | . . . . 4 22 22 8 27 30 15 23 16 14 18 1 . . . . . . . . . . . . . Flight 8 | . . . . . . . . . . . . . 7 20 38 40 37 33 39 34 29 32 35 31 6 . . . Device 15 | . 4 14 11 11 11 11 18 8 7 14 14 12 13 13 22 25 24 26 20 19 18 17 17 25 20 16 11 8 Storage 6 | . 14 14 11 11 11 11 9 7 7 7 7 7 6 3 . . . . . 2 5 5 5 5 5 5 5 4 Processor 6 | . . . . . . . . 8 13 15 15 10 6 6 6 6 6 6 6 5 5 5 5 9 6 5 5 4 Protection 4 | . . . 3 2 . . 4 8 8 . . 5 6 4 1 . 1 . 4 5 3 4 5 . 4 8 10 8 Energy Gun 4 | . 15 28 17 13 . 1 8 3 . . . . 3 3 . . . . . . . 3 11 9 1 . . 1 Energy Cannon 2 | . . . . . . . 4 . 8 15 11 7 6 4 . . . . . . . . . . . . . . Ballistic Gun 3 | . 13 . 4 8 . 11 2 4 . . . . . . 7 5 . . . . . . . . 6 9 10 1 Ballistic Cannon 1 | . . . . . . . 2 4 6 . 2 7 . . . . . . . . . . . . . . . 3 Peak Build Rating 142 | 6 9 9 19 17 11 12 28 36 36 34 41 36 52 52 69 64 64 58 65 83 81 109 108 124 124 120 123 142 Average Rating 52 | 4 7 9 16 14 9 10 21 31 34 32 35 35 41 46 59 62 60 58 61 73 80 95 108 122 116 115 118 121 On Entrance 52 | . 6 9 9 16 12 9 10 26 36 34 34 36 35 52 36 62 62 58 58 59 80 81 108 108 124 117 117 123 Avg Prop Armor Cover (%) 8 | . . . . 6 12 9 9 . 8 13 11 5 2 2 10 . . . . . . . 2 . 3 3 4 11 Naked Turns . | . . . . . . . . . . . . . . . . . . . . . . . . . . . . . Heaviest Build 85 | 14 15 15 28 25 14 22 62 74 74 71 64 73 74 74 33 31 29 28 36 41 40 54 48 50 81 85 73 85 Greatest Support 200 | 20 20 20 30 30 26 32 58 68 58 32 32 32 32 32 38 38 38 31 37 47 41 60 60 60 162 135 135 200 Greatest Overweight (x) 5 | 1 . . 2 1 . . 5 5 2 3 1 3 3 2 . . . . . . . . . . 3 . . . Average Overweight (x) . | . . . . . . . . . 1 2 1 2 2 1 . . . . . . . . . . . . . . Largest Inventory Capacity 20 | 8 8 8 8 8 8 8 20 20 20 20 20 20 20 20 5 5 5 5 5 10 10 10 10 10 10 10 10 10 Average Capacity 13 | 7 8 8 8 8 8 8 19 20 20 20 20 20 20 13 5 5 5 5 5 7 10 10 10 10 10 10 10 9 Most Carried 20 | 4 7 6 8 8 6 5 20 20 20 20 20 20 19 19 5 5 5 5 5 10 10 10 10 10 10 10 10 10 Average Carried 12 | 2 4 6 7 6 5 4 16 16 20 20 19 19 18 13 4 4 5 5 4 7 10 9 10 8 9 10 10 9 Final Capacity 20 | 8 8 8 8 8 8 8 20 20 20 20 20 20 20 5 5 5 5 5 5 10 10 10 10 10 10 10 10 5 Final Carried 20 | 4 6 6 8 4 6 5 14 20 20 20 20 19 19 5 5 5 5 5 5 10 10 10 10 10 10 10 10 4 Class Distribution -------------------- 54% | Scavenger-Mutant 25% | Mutant 7% | Sprinter Dominant Class ---------------- Mutant | -10/Materials Mutant | -10/Mines Mutant | -9/Materials Scavenger-Mutant | -9/Mines Mutant | -9/Exiles Scavenger-Mutant | -8/Mines Scavenger-Mutant | -8/Materials Mutant | -7/Factory Scavenger-Mutant | -7/Lower Caves Scavenger-Mutant | -7/Lower Caves Scavenger-Mutant | -7/Zion Mutant | -6/Proximity Caves Scavenger-Mutant | -6/Factory Scavenger-Mutant | -6/Waste Sprinter | -6/Factory Ninja | -6/Lower Caves Ninja | -6/Lower Caves Ninja | -6/Data Miner Scout | -5/Proximity Caves Scavenger-Scout | -5/Factory Sprinter | -5/Upper Caves Sprinter | -5/Warlord Sprinter | -4/Proximity Caves Infiltrator-Sprinter | -4/Factory Scavenger-Mutant | -4/Extension Scavenger-Mutant | -4/Cetus Scavenger-Mutant | -4/Archives Scavenger-Mutant | -4/Hub_04(d) Resources | -11 -10 -10 -9 -9 -9 -8 -8 -7 -7 -7 -7 -6 -6 -6 -6 -6 -6 -6 -5 -5 -5 -5 -4 -4 -4 -4 -4 -4 ----------- Run | Yrd Mat Min Mat Min Exi Min Mat Fac Low Low Zio Pro Fac Was Fac Low Low Dat Pro Fac Upp War Pro Fac Ext Cet Arc Hub Matter Collected 5393 | 225 72 20 216 18 . 284 954 598 227 66 80 49 121 . 272 50 5 . 85 40 . . 125 9 1353 53 54 417 Remotely . | . . . . . . . . . . . . . . . . . . . . . . . . . . . . . Salvage Created 7354 | . 73 109 542 139 . 188 1976 649 161 151 . 138 135 . 140 . . . 101 30 . . 19 64 1316 199 128 1096 Parts 394 | . 6 9 31 6 . 5 108 42 5 5 . 5 4 . 11 . . . 6 . . . 2 6 72 9 8 54 Haulers Intercepted 5 | . . . . . . . 2 1 . . . . . . . . . . . . . . . . 1 . . 1 Recyclers Shooed 8 | . . 1 3 . . 1 . 3 . . . . . . . . . . . . . . . . . . . . Parts Field Recycled . | . . . . . . . . . . . . . . . . . . . . . . . . . . . . . Retrieved Matter . | . . . . . . . . . . . . . . . . . . . . . . . . . . . . . Parts Self-Destructed 16 | . . . . . . . . . 3 4 . 3 . . . . . . 4 . . . 2 . . . . . Prevented 4 | . . . . . . . . . . . . 2 . . . . . . 1 . . . 1 . . . . . Parts Restored . | . . . . . . . . . . . . . . . . . . . . . . . . . . . . . Kills | -11 -10 -10 -9 -9 -9 -8 -8 -7 -7 -7 -7 -6 -6 -6 -6 -6 -6 -6 -5 -5 -5 -5 -4 -4 -4 -4 -4 -4 ------- Run | Yrd Mat Min Mat Min Exi Min Mat Fac Low Low Zio Pro Fac Was Fac Low Low Dat Pro Fac Upp War Pro Fac Ext Cet Arc Hub Combat Hostiles Destroyed 132 | . 2 3 17 6 . 2 39 7 3 2 . 2 . . . . . . 4 . . . 1 2 22 2 1 17 Melee 11 | . . . . . . . . . . . . . . . . . . . 4 . . . . . 7 . . . Guns 70 | . 2 3 17 6 . 2 14 3 . . . . . . . . . . . . . . 1 . 12 . 1 9 Cannons 33 | . . . . . . . 17 2 3 2 . 2 . . . . . . . . . . . . . . . 7 AOE 16 | . . . . . . . 8 2 . . . . . . . . . . . . . . . 2 3 . . 1 Classes Destroyed 18 | . 1 2 3 2 . . 3 4 . . . 1 . . . . . . . . . . . . . . . 2 Worker 10 | . . . . . . . 7 2 . . . . . . . . . . . . . . . . . . . 1 Builder 5 | . . 1 . . . . 1 1 . . . . . . 1 . . . . . . . . . 1 . . . Tunneler 4 | . . . . . . . . 1 . . . . 1 . . . . . . . . . . . 2 . . . Hauler 5 | . . . . . . . 2 1 . . . . . . . . . . . . . . . . 1 . . 1 Recycler 11 | . . . 1 . . 1 1 5 . . . . 1 . 1 . . . . . . . . . 1 . . . Operator 2 | . . . . . . . . 1 . . . . . . . . . . . . . . . . . . 1 . Watcher 8 | . . . 2 . . . 2 1 . . . . . . . . . . . 1 . . . 1 . 1 . . Swarmer 33 | . . 2 11 . . . 3 . . . . . . . . . . . 4 . . . . 2 11 . . . Grunt 55 | . 2 1 4 1 . 2 27 2 3 2 . . . . . . . . . . . . . . 4 . . 7 Brawler 4 | . . . . 1 . . 1 . . . . . . . . . . . . . . . . . . . . 2 Duelist 2 | . . . . . . . 1 . . . . . . . . . . . . . . . . . . . . 1 Sentry 22 | . . . 2 . . . 7 3 . . . 1 . . . . . . . . . . . . 4 . 1 4 Hunter 4 | . . . . . . . . 1 . . . . . . . . . . . . . . . . 2 . . 1 Programmer 3 | . . . . . . . . 1 . . . . . . . . . . . . . . 1 . . . . 1 Heavy 1 | . . . . . . . . . . . . . . . . . . . . . . . . . . . . 1 Behemoth 1 | . . . . . . . . . . . . 1 . . . . . . . . . . . . . . . . Cetus Guard 2 | . . . . . . . . . . . . . . . . . . . . . . . . . . 2 . . Z-Light 1 | . . . . . . . . . . . . . . . . . . . . . . . . . . . . 1 Assembled 4 | . . . . 4 . . . . . . . . . . . . . . . . . . . . . . . . Thug 1 | . . . . . . . . . . . . . . . . . . . . . . . . . 1 . . . Best Kill Streak 10 | . 2 2 4 3 . 2 9 4 3 1 . 1 1 . 1 . . . 3 1 . . 1 2 10 3 2 9 Combat Bots Only 10 | . 2 2 4 3 . 2 8 2 3 1 . 1 . . . . . . 3 . . . 1 2 10 2 1 9 Max Kills in Single Turn 4 | . 1 1 2 1 . 1 4 2 1 1 . 1 1 . 1 . . . 1 1 . . 1 2 3 1 1 2 Gunslinging 1 | . . . 1 . . . . . . . . . . . . . . . . . . . . . 1 . . 1 Exploded 4 | . . . . . . . 4 1 . . . . . . . . . . . . . . . 2 3 . . 1 Melee 1 | . . . . . . . . . . . . . . . . . . . 1 . . . . . 1 . . . Uniques/NPCs Destroyed . | . . . . . . . . . . . . . . . . . . . . . . . . . . . . . Combat | -11 -10 -10 -9 -9 -9 -8 -8 -7 -7 -7 -7 -6 -6 -6 -6 -6 -6 -6 -5 -5 -5 -5 -4 -4 -4 -4 -4 -4 -------- Run | Yrd Mat Min Mat Min Exi Min Mat Fac Low Low Zio Pro Fac Was Fac Low Low Dat Pro Fac Upp War Pro Fac Ext Cet Arc Hub Hostile Shots Fired 1200 | . 15 17 91 47 . 44 251 189 20 21 . 18 . 2 1 9 6 . 18 13 . . 7 7 109 11 5 299 Missed 380 | . 3 7 33 14 . 12 65 62 4 4 . 8 . . 1 1 3 . 7 5 . . 5 4 30 8 2 102 Hits 820 | . 12 10 58 33 . 32 186 127 16 17 . 10 . 2 . 8 3 . 11 8 . . 2 3 79 3 3 197 Melee 28 | . . . . 4 . . 8 . . . . . . 2 . . . . . . . . . . . . . 14 Projectile 792 | . 12 10 58 29 . 32 178 127 16 17 . 10 . . . 8 3 . 11 8 . . 2 3 79 3 3 183 Critical Strikes 31 | . . . . 1 . 3 12 . . . . . . 1 . . 1 . . . . . . . 1 . . 12 Actively Blocked 1 | . . . . . . . 1 . . . . . . . . . . . . . . . . . . . . . Part Disruptions 4 | . . . . 3 . . . . . . . . . . . . . . . . . . . . . . . 1 Damage Taken 13798 | . 138 97 614 497 . 535 2996 1200 265 262 . 228 5 77 . 141 56 . 167 273 . . 42 54 1794 77 74 4206 Core 2300 | . 35 34 29 70 . 160 479 163 18 . . 12 5 . . . 19 . 18 104 . . . . 168 27 . 959 Absorbed by Shields . | . . . . . . . . . . . . . . . . . . . . . . . . . . . . . Redirected to Shielding 124 | . . . . . . . 13 . . . . . . . . 10 11 . . . . . 15 . 75 . . . Regen/Repaired (Parts) 14 | . . . . . . . . . . . . . . . . . . . . . . 14 . . . . . . Core Remaining (%) 67 | 100 . 72 . . . 35 12 . . . . 72 . . . . . . 95 . . . 89 . . . . . Volleys Fired 458 | . 9 12 56 32 . 18 140 57 8 9 . 11 6 . 6 . . . . . . . 2 7 35 3 3 44 Largest 2 | . 2 2 2 2 . 2 2 2 2 2 . 2 2 . 2 . . . . . . . 2 2 2 1 2 2 Hottest 140 | . 70 90 131 131 . 79 128 80 120 120 . 100 140 . 44 . . . . . . . 120 120 93 43 56 120 Shots Fired 824 | . 18 23 99 55 . 31 276 101 16 18 . 22 9 . 9 . . . . . . . 4 10 64 3 6 60 Gun 519 | . 18 23 99 55 . 31 129 42 . . . . 4 . 6 . . . . . . . 4 8 58 . 6 36 Cannon 276 | . . . . . . . 145 46 16 18 . 22 3 . 3 . . . . . . . . . . . . 23 Launcher 29 | . . . . . . . 2 13 . . . . 2 . . . . . . . . . . 2 6 3 . 1 Special . | . . . . . . . . . . . . . . . . . . . . . . . . . . . . . Kinetic 424 | . 9 . 43 41 . 23 113 85 . . . 11 . . 9 . . . . . . . . . 55 . 6 29 Thermal 268 | . 9 11 53 14 . 8 121 . 16 18 . 11 7 . . . . . . . . . . . . . . . Explosive 17 | . . . . . . . 2 13 . . . . 2 . . . . . . . . . . . . . . . Electromagnetic 70 | . . 12 3 . . . 40 3 . . . . . . . . . . . . . . . 2 6 3 . 1 Entropic 45 | . . . . . . . . . . . . . . . . . . . . . . . 4 8 3 . . 30 Robot Hit Streak 27 | . 6 4 9 7 . 8 12 27 6 4 . 8 10 . 5 . . . . . . . 7 3 14 2 2 8 Robot Miss Streak 5 | . 2 5 3 4 . 3 5 2 1 2 . 3 1 . 1 . . . . . . . 1 4 2 1 2 4 Penetration Max 1 | . . . . . . . 1 1 . . . . . . . . . . . . . . . . 1 . . 1 Secondary Targets 12 | . 1 1 3 1 . . 1 . . . . . . . . . . . . . . . . . 3 . . 2 Max Gunslinging Chain 1 | . 1 1 1 1 . . 1 . . . . . . . . . . . . . . . . . 1 . . 1 Shots Hit Robots 559 | . 13 11 62 34 . 19 179 73 11 10 . 15 6 . 5 . . . 4 1 . . 4 5 60 2 3 42 Core Hits 306 | . 5 7 26 11 . 10 92 31 5 5 . 4 3 . 4 . . . 3 . . . 2 4 42 7 3 42 Critical Kills 2 | . . . . . . . . . . . . . . . . . . . . . . . . . . . 2 . Critical Parts Destroyed 4 | . . . 1 . . . 1 . . . . . . . . . . . . 1 . . . . 1 . . . Critical Strikes 33 | . 1 1 6 2 . 2 6 6 . . . . . . . . . . . 1 . . . . 4 . 2 2 Burn 12 | . 1 1 5 2 . 2 1 . . . . . . . . . . . . . . . . . . . . . Destroy 5 | . . . 1 . . . 1 . . . . . . . . . . . . . . . . . 1 . 2 . Blast 10 | . . . . . . . 2 6 . . . . . . . . . . . . . . . . . . . 2 Corrupt 2 | . . . . . . . 2 . . . . . . . . . . . . . . . . . . . . . Smash 1 | . . . . . . . . . . . . . . . . . . . . 1 . . . . . . . . Sunder 3 | . . . . . . . . . . . . . . . . . . . . . . . . . 3 . . . Melee Attacks 41 | . . . . . . . 2 2 . . . . 2 . . 3 3 . 9 6 . . . . 14 . . . Impact 12 | . . . . . . . 2 2 . . . . 2 . . . . . . 6 . . . . . . . . Slashing 15 | . . . . . . . . . . . . . . . . 3 3 . 9 . . . . . . . . . Piercing . | . . . . . . . . . . . . . . . . . . . . . . . . . . . . . Entropic 14 | . . . . . . . . . . . . . . . . . . . . . . . . . 14 . . . Sneak Attacks 4 | . . . . . . . . . . . . . . . . . . . . . . . . . 4 . . . Combat Hostiles . | . . . . . . . . . . . . . . . . . . . . . . . . . . . . . Follow-up Attacks . | . . . . . . . . . . . . . . . . . . . . . . . . . . . . . Damage Inflicted 16959 | . 158 168 1053 543 . 287 4431 2087 255 233 . 394 142 . 98 . . . 206 61 . . 217 223 3012 401 86 2904 Guns 7564 | . 158 121 1052 535 . 287 1606 648 . . . . 84 . 64 . . . . . . . 217 166 973 . 86 1567 Cannons 5247 | . . . . . . . 2072 1011 255 233 . 394 47 . 34 . . . . . . . . . . . . 1201 Explosions 2252 | . . 47 . . . . 729 428 . . . . . . . . . . . . . . . 57 454 401 . 136 Melee 1852 | . . . . . . . . . . . . . . . . . . . 206 61 . . . . 1585 . . . Ramming 44 | . . . 1 8 . . 24 . . . . . 11 . . . . . . . . . . . . . . . Kinetic 6762 | . 73 . 309 374 . 216 1639 1628 . . . 194 . . 98 . . . . . . . . . 889 . 86 1256 Thermal 3830 | . 85 110 702 161 . 71 1848 . 255 233 . 200 131 . . . . . . . . . . . 34 . . . Explosive 813 | . . . . . . . 385 428 . . . . . . . . . . . . . . . . . . . . Electromagnetic 1679 | . . 58 41 . . . 535 31 . . . . . . . . . . . . . . . 57 420 401 . 136 Impact 61 | . . . . . . . . . . . . . . . . . . . . 61 . . . . . . . . Slashing 206 | . . . . . . . . . . . . . . . . . . . 206 . . . . . . . . . Piercing . | . . . . . . . . . . . . . . . . . . . . . . . . . . . . . Entropic 3564 | . . . . . . . . . . . . . . . . . . . . . . . 217 166 1669 . . 1512 Highest Corruption 8 | . 2 2 . 4 4 4 . . . . . . . . . . . . . . . . 1 . . . . 8 Average Corruption 3 | . 2 2 . 4 4 4 . . . . . . . . . . . . . . . . 1 . . . . 2 Corruption Purged . | . . . . . . . . . . . . . . . . . . . . . . . . . . . . . Corruption Blocked . | . . . . . . . . . . . . . . . . . . . . . . . . . . . . . Effects 25 | . . 2 . 3 3 7 . . . . . . . . . . . . . . . . 2 . . . . 8 Message Errors 7 | . . . . 2 . 2 . . . . . . . . . . . . . . . . . . . . . 3 Matter Fused 6 | . . . . . 2 1 . . . . . . . . . . . . . . . . 1 . . . . 2 Heat Flow Errors 1 | . . . . 1 . . . . . . . . . . . . . . . . . . . . . . . . Energy Discharges 4 | . . . . . . 3 . . . . . . . . . . . . . . . . 1 . . . . . Parts Fused 1 | . . . . . 1 . . . . . . . . . . . . . . . . . . . . . . . Data Loss (minor) 2 | . . 1 . . . 1 . . . . . . . . . . . . . . . . . . . . . . Misfires 1 | . . . . . . . . . . . . . . . . . . . . . . . . . . . . 1 Weapon Failures 3 | . . 1 . . . . . . . . . . . . . . . . . . . . . . . . . 2 Overload Shots . | . . . . . . . . . . . . . . . . . . . . . . . . . . . . . Overflow Damage 390 | . . . . . . . 25 36 . . . . . . 13 . . . 19 61 . . . . 161 . . 75 Projectiles 98 | . . . . . . . 5 29 . . . . . . 13 . . . . . . . . . . . . 51 Explosions 76 | . . . . . . . 20 7 . . . . . . . . . . . . . . . . 25 . . 24 Melee 216 | . . . . . . . . . . . . . . . . . . . 19 61 . . . . 136 . . . Knockbacks 24 | . . . . . . . 12 5 . . . . . . . . . . . 1 . . . . . . . 6 Impact 2 | . . . . . . . 1 . . . . . . . . . . . . 1 . . . . . . . . Kinetic 19 | . . . . . . . 10 5 . . . . . . . . . . . . . . . . . . . 4 Secondary 3 | . . . . . . . 1 . . . . . . . . . . . . . . . . . . . . 2 Self-Inflicted Damage 330 | . . . . . . . 112 95 . . . . 5 . . . . . . . . . . . . . . 118 Shots 7 | . . . . . . . 2 3 . . . . . . . . . . . . . . . . . . . 2 Rammed 2 | . . . . . . . 1 . . . . . 1 . . . . . . . . . . . . . . . Targets Rammed 5 | . . . 1 2 . . 1 . . . . . 1 . . . . . . . . . . . . . . . Kicked 3 | . . . 1 2 . . . . . . . . . . . . . . . . . . . . . . . . Crushed . | . . . . . . . . . . . . . . . . . . . . . . . . . . . . . Highest Temperature 423 | . 159 5 66 133 . 15 216 10 240 423 . 6 72 . 206 2 29 . 17 313 . 198 198 188 60 . . 240 Average Temperature 64 | . 83 2 14 41 . 7 42 4 134 215 . 4 27 . 61 2 8 . 2 93 . 98 64 73 23 . . 98 Received Heat Transfer 3651 | . 78 21 198 180 . 342 1503 297 144 153 . 63 . . . . 45 . . 9 . . . . 132 9 . 477 Effects 2 | . . . . . . . . . 1 1 . . . . . . . . . . . . . . . . . . Energy Bleed 1 | . . . . . . . . . . 1 . . . . . . . . . . . . . . . . . . Interference 1 | . . . . . . . . . 1 . . . . . . . . . . . . . . . . . . . Siege Activations . | . . . . . . . . . . . . . . . . . . . . . . . . . . . . . Martial Activations . | . . . . . . . . . . . . . . . . . . . . . . . . . . . . . Shielding Activations . | . . . . . . . . . . . . . . . . . . . . . . . . . . . . . Robots Disrupted . | . . . . . . . . . . . . . . . . . . . . . . . . . . . . . Combat Hostiles . | . . . . . . . . . . . . . . . . . . . . . . . . . . . . . Robots Corrupted 3 | . . . . . . . . . . . . . . . . . . . . 1 . . . . . 2 . . Combat Hostiles 2 | . . . . . . . . . . . . . . . . . . . . . . . . . . 2 . . Parts Fried 4 | . . . . . . . . . . . . . . . . . . . . 1 . . . . 1 1 1 . Impact Corruptions 3 | . . . . . . . . . . . . . . . . . . . . 3 . . . . . . . . Robots Melted . | . . . . . . . . . . . . . . . . . . . . . . . . . . . . . Combat Hostiles . | . . . . . . . . . . . . . . . . . . . . . . . . . . . . . Parts Melted 8 | . . . 3 1 . 1 1 . 1 . . . 1 . . . . . . . . . . . . . . . Heat Transferred 7915 | . 333 359 1702 481 . 333 3260 . 407 370 . 296 274 . . . . . . . . . . . 100 . . . Parts Sabotaged . | . . . . . . . . . . . . . . . . . . . . . . . . . . . . . Parts Stolen . | . . . . . . . . . . . . . . . . . . . . . . . . . . . . . Parts Stripped . | . . . . . . . . . . . . . . . . . . . . . . . . . . . . . Power Chain Reactions 6 | . . 1 . . . . 2 . . . . . . . . . . . . . . . . 1 2 . . . Alert | -11 -10 -10 -9 -9 -9 -8 -8 -7 -7 -7 -7 -6 -6 -6 -6 -6 -6 -6 -5 -5 -5 -5 -4 -4 -4 -4 -4 -4 ------- Run | Yrd Mat Min Mat Min Exi Min Mat Fac Low Low Zio Pro Fac Was Fac Low Low Dat Pro Fac Upp War Pro Fac Ext Cet Arc Hub Maximum Alert Level 3 | . . . 2 . . . 3 2 . . . . 3 1 1 . . . . 1 . . . 1 2 2 1 3 Low Security (%) 30 | 100 100 100 34 100 . 100 15 . . . . . . . 69 . . . . 28 . . . 83 1 . 16 12 Level 1 37 | . . . 45 . . . 16 91 . . . . . 100 30 . . . . 71 . . . 16 54 24 84 25 Level 2 25 | . . . 20 . . . 66 8 . . . . . . . . . . . . . . . . 44 75 . 26 Level 3 5 | . . . . . . . 1 . . . . . 100 . . . . . . . . . . . . . . 35 Level 4 . | . . . . . . . . . . . . . . . . . . . . . . . . . . . . . Level 5 . | . . . . . . . . . . . . . . . . . . . . . . . . . . . . . High Security . | . . . . . . . . . . . . . . . . . . . . . . . . . . . . . Max Security . | . . . . . . . . . . . . . . . . . . . . . . . . . . . . . Peak Influence 1063 | . 60 109 458 136 . 30 873 413 . . . . 931 276 233 . . . . 281 . . . 221 566 440 308 1063 Initial 780 | . . 11 34 136 . . . 395 . . . . 780 276 151 . . . . 46 . . . 12 93 290 160 100 Average 307 | . 31 54 252 50 . 4 398 368 . . . . 811 250 168 . . . . 220 . . . 42 394 388 264 568 Influence Increases 8802 | . 80 138 768 50 . 55 1577 457 70 75 . 137 971 . 321 30 90 . 135 461 . . 60 316 1134 170 168 1539 Destroy 0b10 Robot/C 3480 | . 40 100 400 40 . 40 780 140 60 40 . 80 . . 140 . . . 80 80 . . 20 40 680 80 80 560 Destroy 0b10 Robot/NC 270 | . . 5 20 . . 5 65 60 . 5 . . 10 . 20 . . . . 5 . . . 10 30 5 5 25 Destroy Leader 684 | . 10 20 74 10 . 10 178 64 10 . . 20 . . 32 . . . 10 12 . . 10 2 70 . . 152 Allied During Kill 859 | . . 7 16 . . . . . . . . 37 . . 19 . . . . 5 . . . 1 313 85 68 308 Successful Hack 196 | . . . 46 . . . 44 40 . . . . . . 2 . . . . 33 . . . 24 7 . . . Select Force Hacks 150 | . 30 . . . . . 60 60 . . . . . . . . . . . . . . . . . . . . Disable Machine 390 | . . . 30 . . . 60 30 . . . . . . 30 . . . . 30 . . . 105 . . 15 90 Anti-Garrison Action 600 | . . . . . . . . . . . . . 200 . . . . . . 200 . . . . . . . 200 Destroy Structure 433 | . . 6 2 . . . 45 63 . . . . 11 . 18 . . . . 6 . . . 134 34 . . 114 Advance Influence 750 | . . . . . . . . . . . . . 750 . . . . . . . . . . . . . . . Partial Spotted 60 | . . . . . . . . . . . . . . . 30 . . . . 30 . . . . . . . . Lose Combat Pursuer 930 | . . . 180 . . . 345 . . 30 . . . . 30 30 90 . 45 60 . . 30 . . . . 90 Influence Decreases 7733 | . 50 79 507 400 . 55 707 959 355 158 . 88 229 575 335 136 79 107 60 379 69 88 40 145 806 289 280 758 Entered New Map 2657 | . . 19 55 214 . . . 475 137 17 . . 19 515 65 76 19 107 . 29 59 88 . 8 98 229 240 188 Time Decay 3812 | . 50 60 362 170 . 45 537 404 198 131 . 70 150 40 230 60 50 . 50 270 10 . 40 97 518 50 30 190 Lost Part 654 | . . . 70 16 . 10 170 70 20 10 . 18 . 20 . . 10 . 10 10 . . . . 30 10 10 170 Lost Ally 610 | . . . 20 . . . . 10 . . . . 60 . 40 . . . . 70 . . . 40 160 . . 210 Squads Dispatched 34 | . 1 . 1 . . . 9 6 . . . . 2 . 1 . . . . 4 . . . . 2 . . 8 Investigation 12 | . 1 . . . . . 4 2 . . . . 1 . . . . . . 2 . . . . 1 . . 1 Extermination 4 | . . . . . . . . 1 . . . . 1 . . . . . . 2 . . . . . . . . Reinforcement 11 | . . . 1 . . . 1 3 . . . . . . 1 . . . . . . . . . 1 . . 4 Assault 3 | . . . . . . . 1 . . . . . . . . . . . . . . . . . . . . 2 Garrison 4 | . . . . . . . 3 . . . . . . . . . . . . . . . . . . . . 1 Intercept . | . . . . . . . . . . . . . . . . . . . . . . . . . . . . . Searches Triggered . | . . . . . . . . . . . . . . . . . . . . . . . . . . . . . Data Miner Redirects 3 | . . . . . . . . . . . . . . . . . . . . . . . . . . . . 3 Construction Impeded 1 | . . . . . . . . 1 . . . . . . . . . . . . . . . . . . . . Haulers Reinforced . | . . . . . . . . . . . . . . . . . . . . . . . . . . . . . Active Scanning Responses . | . . . . . . . . . . . . . . . . . . . . . . . . . . . . . Cargo Convoy Interrupts . | . . . . . . . . . . . . . . . . . . . . . . . . . . . . . Stealth | -11 -10 -10 -9 -9 -9 -8 -8 -7 -7 -7 -7 -6 -6 -6 -6 -6 -6 -6 -5 -5 -5 -5 -4 -4 -4 -4 -4 -4 --------- Run | Yrd Mat Min Mat Min Exi Min Mat Fac Low Low Zio Pro Fac Was Fac Low Low Dat Pro Fac Upp War Pro Fac Ext Cet Arc Hub Distress Signals 18 | . . . 3 . . . 6 1 . . . 1 . . . . . . . 1 . . . . 3 1 . 2 Communications Jammed 108 | . . . . . . . . . . . . . . . . . . . . 3 . . . . 6 . 2 97 Distress Signals 102 | . . . . . . . . . . . . . . . . . . . . 3 . . . . 6 . 2 91 Times Spotted 304 | . 2 5 35 11 . 3 73 14 3 4 . 6 1 6 9 2 7 . 9 22 . . 4 6 29 5 3 45 Peak Tracking Total 16 | . 2 3 7 6 . 3 8 3 3 4 . 3 1 6 5 2 5 . 5 9 . . 3 3 7 5 2 16 Tactical Retreats 44 | . . . 6 2 . . 16 . . 2 . . . . 2 1 2 . 2 4 . . 1 2 . . . 4 ECM-based Alert Blocks 19 | . . . . . . . . . . . . . . . . . . . . 15 . . . 4 . . . . Traps | -11 -10 -10 -9 -9 -9 -8 -8 -7 -7 -7 -7 -6 -6 -6 -6 -6 -6 -6 -5 -5 -5 -5 -4 -4 -4 -4 -4 -4 ------- Run | Yrd Mat Min Mat Min Exi Min Mat Fac Low Low Zio Pro Fac Was Fac Low Low Dat Pro Fac Upp War Pro Fac Ext Cet Arc Hub Traps Triggered 8 | . 1 . . . . . . 2 . . . . 1 . 1 . . . . . . . . 1 1 . . 1 Indirectly 1 | . . . . . . . . . . . . . . . . . . . . . . . . 1 . . . . Trap Hack Attempts . | . . . . . . . . . . . . . . . . . . . . . . . . . . . . . Triggered . | . . . . . . . . . . . . . . . . . . . . . . . . . . . . . Disarmed 6 | . . . 6 . . . . . . . . . . . . . . . . . . . . . . . . . Reprogrammed . | . . . . . . . . . . . . . . . . . . . . . . . . . . . . . Reused . | . . . . . . . . . . . . . . . . . . . . . . . . . . . . . Traps Extracted . | . . . . . . . . . . . . . . . . . . . . . . . . . . . . . Installed . | . . . . . . . . . . . . . . . . . . . . . . . . . . . . . Triggered . | . . . . . . . . . . . . . . . . . . . . . . . . . . . . . Machines | -11 -10 -10 -9 -9 -9 -8 -8 -7 -7 -7 -7 -6 -6 -6 -6 -6 -6 -6 -5 -5 -5 -5 -4 -4 -4 -4 -4 -4 ---------- Run | Yrd Mat Min Mat Min Exi Min Mat Fac Low Low Zio Pro Fac Was Fac Low Low Dat Pro Fac Upp War Pro Fac Ext Cet Arc Hub Machines Disabled 28 | . . . 2 . . . 4 2 . . . . . . 2 . . . . 2 . . . 7 2 . 1 6 Max in Single Turn 2 | . . . 1 . . . 1 1 . . . . . . 1 . . . . 1 . . . 1 1 . 1 2 Garrison Access 3 | . . . . . . . . . . . . . 1 . . . . . . 1 . . . . . . . 1 Network Hub 1 | . . . . . . . . . . . . . . . . . . . . . . . . . . . . 1 Energy Cycler 1 | . . . . . . . . . . . . . . . . . . . . . . . . . 1 . . . Machines Repaired . | . . . . . . . . . . . . . . . . . . . . . . . . . . . . . Machines Dismantled . | . . . . . . . . . . . . . . . . . . . . . . . . . . . . . Machines Sabotaged . | . . . . . . . . . . . . . . . . . . . . . . . . . . . . . Overloaded Fab Kills . | . . . . . . . . . . . . . . . . . . . . . . . . . . . . . Hacking | -11 -10 -10 -9 -9 -9 -8 -8 -7 -7 -7 -7 -6 -6 -6 -6 -6 -6 -6 -5 -5 -5 -5 -4 -4 -4 -4 -4 -4 --------- Run | Yrd Mat Min Mat Min Exi Min Mat Fac Low Low Zio Pro Fac Was Fac Low Low Dat Pro Fac Upp War Pro Fac Ext Cet Arc Hub Machines Accessed 48 | . 1 1 6 . 1 . 7 5 . . . . 1 . 2 . . 4 . 6 . 10 . 2 1 . . 1 Terminals 16 | . . 1 6 . . . 5 3 . . . . . . . . . . . . . . . . 1 . . . Fabricators 3 | . . . . . . . . . . . . . . . . . . . . 2 . . . 1 . . . . Repair Stations 1 | . . . . . . . . . . . . . . . . . . . . 1 . . . . . . . . Recycling Units 5 | . 1 . . . . . 2 2 . . . . . . . . . . . . . . . . . . . . Scanalyzers 4 | . . . . . . . . . . . . . . . 1 . . . . 2 . . . 1 . . . . Garrison Access 4 | . . . . . . . . . . . . . 1 . 1 . . . . 1 . . . . . . . 1 Total Hacks 134 | . 1 2 20 . 4 . 19 9 . . . . 2 . 3 . . 29 . 13 . 25 . 4 1 . . 2 Successful 104 | . 1 . 11 . 4 . 14 6 . . . . 1 . 2 . . 29 . 7 . 25 . 2 1 . . 1 Failed 29 | . . 2 8 . . . 5 3 . . . . 1 . 1 . . . . 6 . . . 2 . . . 1 Catastrophic 2 | . . 1 . . . . . . . . . . . . 1 . . . . . . . . . . . . . Database Lockouts 1 | . . . 1 . . . . . . . . . . . . . . . . . . . . . . . . . Manual 132 | . 1 2 14 . . . 13 9 . . . . 8 . 16 . . . . 27 . 1 . 8 22 1 . 10 Terminals 44 | . . 2 20 . . . 14 7 . . . . . . . . . . . . . . . . 1 . . . Fabricators 9 | . . . . . . . . . . . . . . . . . . . . 6 . . . 3 . . . . Repair Stations 1 | . . . . . . . . . . . . . . . . . . . . 1 . . . . . . . . Recycling Units 8 | . 1 . . . . . 5 2 . . . . . . . . . . . . . . . . . . . . Scanalyzers 7 | . . . . . . . . . . . . . . . 2 . . . . 4 . . . 1 . . . . Garrison Access 7 | . . . . . . . . . . . . . 2 . 1 . . . . 2 . . . . . . . 2 Terminal Hacks 70 | . . . 4 . 4 . 6 1 . . . . . . . . . 29 . . . 25 . . 1 . . . Record 33 | . . . . . 4 . . . . . . . . . . . . 11 . . . 18 . . . . . . Part Schematic 10 | . . . . . . . . . . . . . . . . . . 10 . . . . . . . . . . Robot Schematic 5 | . . . . . . . . . . . . . . . . . . 5 . . . . . . . . . . Robot Analysis 3 | . . . 1 . . . 2 . . . . . . . . . . . . . . . . . . . . . Prototype ID Bank 11 | . . . 1 . . . 2 . . . . . . . . . . 3 . . . 5 . . . . . . Open Door 3 | . . . . . . . . . . . . . . . . . . . . . . 2 . . 1 . . . Branch Access Points 2 | . . . . . . . 1 1 . . . . . . . . . . . . . . . . . . . . Terminal Index 1 | . . . 1 . . . . . . . . . . . . . . . . . . . . . . . . . Disarm Traps 1 | . . . 1 . . . . . . . . . . . . . . . . . . . . . . . . . Hauler Manifests 1 | . . . . . . . 1 . . . . . . . . . . . . . . . . . . . . . Fabricator Hacks 2 | . . . . . . . . . . . . . . . . . . . . 2 . . . . . . . . Build 2 | . . . . . . . . . . . . . . . . . . . . 2 . . . . . . . . Repair Station Hacks . | . . . . . . . . . . . . . . . . . . . . . . . . . . . . . Recycling Unit Hacks . | . . . . . . . . . . . . . . . . . . . . . . . . . . . . . Scanalyzer 6 | . . . . . . . . . . . . . . . 2 . . . . 3 . . . 1 . . . . Retrieve Study 6 | . . . . . . . . . . . . . . . 2 . . . . 3 . . . 1 . . . . Garrison Access Hacks . | . . . . . . . . . . . . . . . . . . . . . . . . . . . . . Unauthorized Hacks 26 | . 1 . 7 . . . 8 5 . . . . 1 . . . . . . 2 . . . 1 . . . 1 Terminals 16 | . . . 7 . . . 6 3 . . . . . . . . . . . . . . . . . . . . Assimilate 1 | . . . . . . . 1 . . . . . . . . . . . . . . . . . . . . . Botnet 5 | . . . 2 . . . 1 2 . . . . . . . . . . . . . . . . . . . . Skim 10 | . . . 5 . . . 4 1 . . . . . . . . . . . . . . . . . . . . Fabricators 2 | . . . . . . . . . . . . . . . . . . . . 1 . . . 1 . . . . Liberate 2 | . . . . . . . . . . . . . . . . . . . . 1 . . . 1 . . . . Repair Stations . | . . . . . . . . . . . . . . . . . . . . . . . . . . . . . Recycling Units 5 | . 1 . . . . . 2 2 . . . . . . . . . . . . . . . . . . . . Tunnel 5 | . 1 . . . . . 2 2 . . . . . . . . . . . . . . . . . . . . Scanalyzers . | . . . . . . . . . . . . . . . . . . . . . . . . . . . . . Garrison Access 3 | . . . . . . . . . . . . . 1 . . . . . . 1 . . . . . . . 1 Jam 3 | . . . . . . . . . . . . . 1 . . . . . . 1 . . . . . . . 1 Data Cores Recovered 2 | . . . 1 . . . . 1 . . . . . . . . . . . . . . . . . . . . Used 2 | . . . 1 . . . . 1 . . . . . . . . . . . . . . . . . . . . Hacking Detections 26 | . . . 6 . . . 4 3 . . . . 1 . 2 . . . . 6 . . . 2 . 1 . 1 Full Trace Events 2 | . . . . . . . 1 . . . . . . . . . . . . 1 . . . . . . . . Feedback Events . | . . . . . . . . . . . . . . . . . . . . . . . . . . . . . Feedback Blocked . | . . . . . . . . . . . . . . . . . . . . . . . . . . . . . Robot Schematics Acquired 12 | . . . . . . . . . . . . . . . . . . 5 . 3 . . . . 4 . . . Robots Built 3 | . . . . . . . . . . . . . . . . . . . . 3 . . . . . . . . Authchips . | . . . . . . . . . . . . . . . . . . . . . . . . . . . . . Time 152 | . . . . . . . . . . . . . . . . . . . . 152 . . . . . . . . Total Robot Build Rating 15 | . . . . . . . . . . . . . . . . . . . . 15 . . . . . . . . Part Schematics Acquired 42 | . . . . . . . . . . . . . . . 10 . . 10 . . . . . . 22 . . . Parts Built 1 | . . . . . . . . . . . . . . . . . . . . 1 . . . . . . . . Authchips . | . . . . . . . . . . . . . . . . . . . . . . . . . . . . . Time 64 | . . . . . . . . . . . . . . . . . . . . 64 . . . . . . . . Total Part Build Rating 8 | . . . . . . . . . . . . . . . . . . . . 8 . . . . . . . . Part Studies Acquired 4 | . . . . . . . . . . . . . . . 2 . . . . 2 . . . . . . . . Parts Repaired . | . . . . . . . . . . . . . . . . . . . . . . . . . . . . . Time . | . . . . . . . . . . . . . . . . . . . . . . . . . . . . . Parts Recycled . | . . . . . . . . . . . . . . . . . . . . . . . . . . . . . Recycled Matter . | . . . . . . . . . . . . . . . . . . . . . . . . . . . . . Retrieved Matter . | . . . . . . . . . . . . . . . . . . . . . . . . . . . . . Retrieved Components . | . . . . . . . . . . . . . . . . . . . . . . . . . . . . . Parts Scanalyzed . | . . . . . . . . . . . . . . . . . . . . . . . . . . . . . Part Schematics Acquired . | . . . . . . . . . . . . . . . . . . . . . . . . . . . . . Parts Damaged . | . . . . . . . . . . . . . . . . . . . . . . . . . . . . . Bothacking | -11 -10 -10 -9 -9 -9 -8 -8 -7 -7 -7 -7 -6 -6 -6 -6 -6 -6 -6 -5 -5 -5 -5 -4 -4 -4 -4 -4 -4 ------------ Run | Yrd Mat Min Mat Min Exi Min Mat Fac Low Low Zio Pro Fac Was Fac Low Low Dat Pro Fac Upp War Pro Fac Ext Cet Arc Hub Used RIF Installer . | . . . . . . . . . . . . . . . . . . . . . . . . . . . . . Robots Hacked . | . . . . . . . . . . . . . . . . . . . . . . . . . . . . . Non-combat . | . . . . . . . . . . . . . . . . . . . . . . . . . . . . . Combat . | . . . . . . . . . . . . . . . . . . . . . . . . . . . . . Robot Hacks Applied . | . . . . . . . . . . . . . . . . . . . . . . . . . . . . . Relay Couplers Released . | . . . . . . . . . . . . . . . . . . . . . . . . . . . . . Fabnet Peak Effective % . | . . . . . . . . . . . . . . . . . . . . . . . . . . . . . Robots Rewired 15 | . . . . . . . . . . . . . . . . . . . . . . 5 . . 10 . . . Allies Hacked 1 | . . . . . . . . 1 . . . . . . . . . . . . . . . . . . . . Hacks Repelled 3 | . . . . . . . . . . . . . . . . . . . . . . . . . . . . 3 Allies | -11 -10 -10 -9 -9 -9 -8 -8 -7 -7 -7 -7 -6 -6 -6 -6 -6 -6 -6 -5 -5 -5 -5 -4 -4 -4 -4 -4 -4 -------- Run | Yrd Mat Min Mat Min Exi Min Mat Fac Low Low Zio Pro Fac Was Fac Low Low Dat Pro Fac Upp War Pro Fac Ext Cet Arc Hub Total Allies 48 | . . 2 . . . . 1 . . . 4 . . . 2 . . . . 4 . 5 . 2 22 . . 6 Largest Group 10 | . . 2 2 . . . 1 1 . . 4 4 3 . 2 . . . . 3 . 5 . 2 10 10 7 8 Highest-Rated Group 507 | . . 62 62 . . . 10 10 . . 158 158 115 . 170 . . . . 87 . 305 . 206 505 505 404 507 Highest-Rated Ally 103 | . . 31 31 . . . 10 10 . . 40 40 40 . 85 . . . . 29 . 64 . 103 96 81 81 96 Zionite Dispatches 10 | . . . . . . . . . . . . . . . 1 . . . . 1 . . . 1 4 . . 3 Heavy 2 | . . . . . . . . . . . . . . . 1 . . . . . . . . 1 . . . . Light 2 | . . . . . . . . . . . . . . . . . . . . . . . . . 1 . . 1 Recon 1 | . . . . . . . . . . . . . . . . . . . . . . . . . 1 . . . Fire 1 | . . . . . . . . . . . . . . . . . . . . . . . . . 1 . . . Hacker 2 | . . . . . . . . . . . . . . . . . . . . . . . . . 1 . . 1 Defense Resupply 1 | . . . . . . . . . . . . . . . . . . . . . . . . . . . . 1 Infowar Resupply 1 | . . . . . . . . . . . . . . . . . . . . 1 . . . . . . . . Total Orders 2 | . . . . . . . . . . . . . . . . . . . . 1 . . . . 1 . . . DROP 1 | . . . . . . . . . . . . . . . . . . . . 1 . . . . . . . . EXPLORE 1 | . . . . . . . . . . . . . . . . . . . . . . . . . 1 . . . Ally Attacks 344 | . . 8 20 . . . . . . . . 25 2 . 12 . . . . 38 . . . 4 112 9 19 95 Total Damage 9617 | . . 86 233 . . . . . . . . 1056 12 . 507 . . . . 572 . . . 221 3498 262 543 2627 Kills 59 | . . 2 4 . . . . . . . . 3 . . 8 . . . . 4 . . . 1 17 2 3 15 Allies Corrupted . | . . . . . . . . . . . . . . . . . . . . . . . . . . . . . Allies Melted 2 | . . . . . . . . . . . . . . . . . . . . 1 . . . . 1 . . . Intel | -11 -10 -10 -9 -9 -9 -8 -8 -7 -7 -7 -7 -6 -6 -6 -6 -6 -6 -6 -5 -5 -5 -5 -4 -4 -4 -4 -4 -4 ------- Run | Yrd Mat Min Mat Min Exi Min Mat Fac Low Low Zio Pro Fac Was Fac Low Low Dat Pro Fac Upp War Pro Fac Ext Cet Arc Hub Active Infowar (turns) 8097 | . . . . . . . 1464 550 287 375 1097 69 . . 478 128 104 22 149 579 32 250 204 355 1415 118 75 346 Sensors 5521 | . . . . . . . . . 287 375 1097 69 . . 355 128 104 22 149 549 32 250 204 355 1415 118 12 . Structural 2991 | . . . . . . . 1464 550 . . . . . . 109 122 73 22 111 540 . . . . . . . . Cloaking 780 | . . . . . . . . . . . . . . . 476 128 104 22 50 . . . . . . . . . Jamming 2615 | . . . . . . . . . . . . . . . . . . . . 119 32 165 . 345 1415 118 75 346 ECM 226 | . . . . . . . . . . . . . . . . . . . . 159 5 . . 62 . . . . Robot Analysis Total 3 | . . . 1 . . . 2 . . . . . . . . . . . . . . . . . . . . . Derelict Logs Recovered 8 | . . . . 1 . . . . 1 1 . . . . . 2 1 . 2 . . . . . . . . . Drone Launches 2 | . . . . . . . . . . . . . . . . . . . . . . . . . 2 . . . Drone Recoveries 1 | . . . . . . . . . . . . . . . . . . . . . . . . . 1 . . . Zionite Intel Received 14 | . . . . . . . . . . . . . 1 . 3 . . . . 6 . . . 1 3 . . . Main Access 2 | . . . . . . . . . . . . . 1 . . . . . . 1 . . . . . . . . Branch Access 2 | . . . . . . . . . . . . . . . 1 . . . . . . . . 1 . . . . Emergency Access 2 | . . . . . . . . . . . . . . . 1 . . . . 1 . . . . . . . . Component Schematics 1 | . . . . . . . . . . . . . . . . . . . . . . . . . 1 . . . Prototype Schematics 2 | . . . . . . . . . . . . . . . 1 . . . . . . . . . 1 . . . Unaware Schematics 2 | . . . . . . . . . . . . . . . . . . . . 1 . . . . 1 . . . Unaware Analyses 1 | . . . . . . . . . . . . . . . . . . . . 1 . . . . . . . . Trap Installations 1 | . . . . . . . . . . . . . . . . . . . . 1 . . . . . . . . Active Garrisons 1 | . . . . . . . . . . . . . . . . . . . . 1 . . . . . . . . Exploration | -11 -10 -10 -9 -9 -9 -8 -8 -7 -7 -7 -7 -6 -6 -6 -6 -6 -6 -6 -5 -5 -5 -5 -4 -4 -4 -4 -4 -4 ------------- Run | Yrd Mat Min Mat Min Exi Min Mat Fac Low Low Zio Pro Fac Was Fac Low Low Dat Pro Fac Upp War Pro Fac Ext Cet Arc Hub Turns Passed 11861 | 64 131 127 825 514 123 355 1661 963 407 408 1105 424 300 92 485 128 104 22 149 583 32 250 204 387 1428 118 75 397 Spaces Moved 11162 | 45 78 69 316 371 136 298 654 628 347 300 986 269 206 94 865 369 376 83 372 1465 93 750 418 251 961 84 49 229 Core 45 | 4 . . . . . . . . . . . . . . . . . . . . . . . . 1 . . 40 Treads . | . . . . . . . . . . . . . . . . . . . . . . . . . . . . . Legs 2192 | 41 78 69 316 259 . . 439 . . . . . . . . . . . . . . . . . 668 84 49 189 Wheels 3598 | . . . . 112 136 298 215 628 347 300 986 269 206 94 7 . . . . . . . . . . . . . Hover . | . . . . . . . . . . . . . . . . . . . . . . . . . . . . . Flight 5327 | . . . . . . . . . . . . . . . 858 369 376 83 372 1465 93 750 418 251 292 . . . Fastest Speed 19 | 50 120 120 120 90 90 90 95 94 101 98 98 98 113 83 22 23 23 26 22 19 27 22 22 22 22 120 120 50 Average Speed 72 | 114 120 120 121 111 90 99 163 105 106 123 98 124 126 98 24 23 24 26 22 24 27 23 23 22 92 120 120 107 Slowest Speed 470 | 120 120 120 260 190 90 100 470 165 113 125 98 130 130 113 85 23 26 26 26 27 27 27 25 22 200 120 120 120 Overloaded Moves . | . . . . . . . . . . . . . . . . . . . . . . . . . . . . . Propulsion Burnouts . | . . . . . . . . . . . . . . . . . . . . . . . . . . . . . Robots Hopped 40 | . . . . . . . . . . . . . . . 11 1 2 . 2 14 . 6 2 . 2 . . . Potential Cave-ins . | . . . . . . . . . . . . . . . . . . . . . . . . . . . . . Cave-ins Triggered . | . . . . . . . . . . . . . . . . . . . . . . . . . . . . . Exploration Rate (%) 46 | 4 20 18 30 79 51 53 56 16 54 45 90 43 8 73 19 59 55 70 55 39 15 88 57 8 83 48 65 37 Regions Visited 28 Branch Regions 19 Pre-discovered Areas 11 | . 1 . 2 . 1 . 2 2 . . 2 . . . . . . 1 . . . . . . . . . . Known Exits Taken 17 | . . . . . . 1 1 1 1 1 1 1 . . 1 1 1 1 1 1 1 1 1 1 . . . . Unknown Exits Taken 9 | 1 1 1 1 1 1 . . . . . . . . . . . . . . . . . . . 1 1 1 . Scrap Searched 24 | . . . . . . . . . 1 2 2 1 . . . 10 3 . 3 . . . 2 . . . . . Spaces Dug 21 | . . . . . . . 2 2 . . . . 1 . . 3 3 . 4 3 . . . 3 . . . . Terrain Destroyed 222 | . . 6 . . . . 45 70 . . . 4 15 . . 3 3 . 4 3 . . 1 10 4 . . 54 Melee 18 | . . . . . . . 2 2 . . . . 1 . . 3 3 . 4 3 . . . . . . . . Projectile 67 | . . . . . . . 19 5 . . . 4 . . . . . . . . . . 1 10 4 . . 24 AOE 137 | . . 6 . . . . 24 63 . . . . 14 . . . . . . . . . . . . . . 30 Terrain Rammed . | . . . . . . . . . . . . . . . . . . . . . . . . . . . . . Walls Destroyed . | . . . . . . . . . . . . . . . . . . . . . . . . . . . . . Machines Disabled . | . . . . . . . . . . . . . . . . . . . . . . . . . . . . . Actions | -11 -10 -10 -9 -9 -9 -8 -8 -7 -7 -7 -7 -6 -6 -6 -6 -6 -6 -6 -5 -5 -5 -5 -4 -4 -4 -4 -4 -4 --------- Run | Yrd Mat Min Mat Min Exi Min Mat Fac Low Low Zio Pro Fac Was Fac Low Low Dat Pro Fac Upp War Pro Fac Ext Cet Arc Hub Total 13966 | 54 97 89 656 413 137 325 968 819 363 318 1126 336 229 93 1116 404 378 82 412 1666 98 814 518 570 1420 96 59 310 Wait 1638 | . 3 9 261 1 . . 58 71 1 . 121 54 5 . 195 28 . . 24 170 5 7 101 306 205 5 4 4 Move 11060 | 44 77 68 315 370 135 297 653 627 346 299 985 268 206 93 843 366 371 82 368 1438 92 738 413 250 956 83 48 229 Hop 35 | . . . . . . . . . . . . . . . 10 1 2 . 1 12 . 5 2 . 2 . . . Pick Up 86 | 4 4 . 6 . . 1 28 14 . 2 2 . 1 . 4 . . . 1 7 . 5 . 2 5 . . . Fast Attach 137 | 6 . . 9 1 . 2 27 12 2 2 5 1 4 . 18 1 . . 2 8 . 6 . . 16 2 2 11 Attach 52 | . 2 . 2 4 . 4 15 1 . . 2 1 1 . . . . . 1 3 . 2 . 2 5 . . 7 Detach 25 | . . . 1 . 2 . 6 . . . 2 . . . 1 1 . . . 2 . 3 . . 5 . . 2 Swap 91 | . 1 . . 2 . 2 10 8 6 3 1 . 3 . 7 2 2 . 5 8 1 6 . 3 17 2 1 1 Drop 144 | . 1 . 5 1 . 1 28 11 . 3 8 1 . . 17 2 . . 1 12 . 10 . . 29 1 1 12 Fire 458 | . 9 12 56 32 . 18 140 57 8 9 . 11 6 . 6 . . . . . . . 2 7 35 3 3 44 Melee 41 | . . . . . . . 2 2 . . . . 2 . . 3 3 . 9 6 . . . . 14 . . . Ram 2 | . . . . . . . 1 . . . . . 1 . . . . . . . . . . . . . . . Kick 3 | . . . 1 2 . . . . . . . . . . . . . . . . . . . . . . . . Crush . | . . . . . . . . . . . . . . . . . . . . . . . . . . . . . Escape Stasis 31 | . . . . . . . . 16 . . . . . . 15 . . . . . . . . . . . . . Rewire 163 | . . . . . . . . . . . . . . . . . . . . . . 32 . . 131 . . . Trap . | . . . . . . . . . . . . . . . . . . . . . . . . . . . . . Miscellaneous . | . . . . . . . . . . . . . . . . . . . . . . . . . . . . . Route ------- -11/Scrapyard -10/Materials -10/Mines (discovered 2 exits: *Mat x2) -9/Materials (discovered 4 exits: *Mat x3 / [*Min]) -9/Mines (discovered 3 exits: *Mat x2 / *Exi) -9/Exiles -8/Mines -8/Materials (discovered 3 exits: *Fac x3) -7/Factory (discovered 6 exits: *Fac x2 / Sto x2 / *Low x2) -7/Lower Caves -7/Lower Caves -7/Zion -6/Proximity Caves -6/Factory (discovered 4 exits: Fac x4) -6/Waste -6/Factory (discovered 2 exits: *Low x2) -6/Lower Caves -6/Lower Caves -6/Data Miner -5/Proximity Caves -5/Factory (discovered 5 exits: *Fac x4 / *Upp) -5/Upper Caves -5/Warlord -4/Proximity Caves -4/Factory (discovered 5 exits: Upp x2 / *Ext x2 / Arm) -4/Extension (discovered 3 exits: [*Res x2] / *Cet) -4/Cetus -4/Archives (discovered 2 exits: [*Res] / *Hub) -4/Hub_04(d) (discovered 2 exits: [*Res x2]) History --------- Turn | Location | Event 4 | -11/Scrapyard | Discovered new exit (range 16) 65 | -11/Scrapyard | Entered Materials 162 | -10/Materials | Discovered new exit (range 12) 196 | -10/Materials | Entered Mines 199 | -10/Mines | Received a Mining Laser from a helpful Derelict 272 | -10/Mines | Discovered new exit (range 7) 272 | -10/Mines | Discovered new exit (range 7) 306 | -10/Mines | Build established: Mutant 311 | -10/Mines | Escorted by a lone wolf Derelict 323 | -10/Mines | Entered Materials 323 | -9/Materials | Accompanied by 2 allies 323 | -9/Materials | Evolved 2 slots: Propulsion x1, Utility x1 417 | -9/Materials | Central database locked down 471 | -9/Materials | Discovered new exit (range 10) 536 | -9/Materials | Discovered new exit (range 11) 792 | -9/Materials | Lost 4 parts (2n1u1w) 852 | -9/Materials | Identified exit to Materials 962 | -9/Materials | Learned 2 Storage zone layouts 979 | -9/Materials | Learned location of Zion (-7) 987 | -9/Materials | Learned Storage security intel 1030 | -9/Materials | Loaded intel: 12 terminal locations 1067 | -9/Materials | Learned location of 3 exits from Materials 1067 | -9/Materials | Build established: Scavenger-Mutant 1148 | -9/Materials | Entered Mines 1152 | -9/Mines | Discovered exit to Materials (range 13) 1435 | -9/Mines | Assembled infested the area 1528 | -9/Mines | Lost 3 parts (1n1u1w) 1634 | -9/Mines | Discovered exit to Materials (range 5) 1657 | -9/Mines | Deemed a non-threat by the Exiles lab entrance 1658 | -9/Mines | Discovered new exit (range 5) 1662 | -9/Mines | Entered Exiles 1685 | -9/Exiles | Met 8R-AWN 1700 | -9/Exiles | Met EX-HEX 1728 | -9/Exiles | Met EX-BIN 1738 | -9/Exiles | Met EX-DEC 1778 | -9/Exiles | Discovered new exit (range 10) 1785 | -9/Exiles | Entered Mines 1811 | -8/Mines | Core integrity fell below 50% 1860 | -8/Mines | Lost 4 parts (1p1n2w) 1877 | -8/Mines | Discovered exit to Materials (range 5) 2140 | -8/Mines | Entered Materials 2140 | -8/Materials | Evolved 2 slots: Propulsion x1, Utility x1 2141 | -8/Materials | Identified exit to Factory 2218 | -8/Materials | Garrison activated, responded to threat 2413 | -8/Materials | Lost 3 parts (1p1u1w) 2947 | -8/Materials | Core integrity fell below 50% 3087 | -8/Materials | Lost 6 parts (1p2n2u1w) 3667 | -8/Materials | Lost 3 parts (2u1w) 3740 | -8/Materials | First assault squad dispatched 3767 | -8/Materials | Core integrity fell below 20% 3801 | -8/Materials | Entered Factory 3801 | -7/Factory | Accompanied by 1 ally 3801 | -7/Factory | Evolved 2 slots: Propulsion x1, Utility x1 3804 | -7/Factory | Destroyed 8 combat bots 3874 | -7/Factory | Build established: Mutant 4016 | -7/Factory | Discovered new exit (range 13) 4036 | -7/Factory | Identified exit to Factory 4231 | -7/Factory | Identified exit to Storage 4231 | -7/Factory | Identified exit to Lower Caves 4284 | -7/Factory | Discovered exit to Factory (range 13) 4621 | -7/Factory | Lost 3 parts (3n) 4764 | -7/Factory | Entered Lower Caves 4772 | -7/Lower Caves | Encountered a Warlord checkpoint 5079 | -7/Lower Caves | Learned Factory trap positions 5160 | -7/Lower Caves | Discovered new exit (range 11) 5170 | -7/Lower Caves | Identified exit to Lower Caves 5171 | -7/Lower Caves | Entered another Lower Caves area 5286 | -7/Lower Caves | Build established: Scavenger-Mutant 5521 | -7/Lower Caves | Discovered new exit (range 10) 5556 | -7/Lower Caves | Learned location of 1 exit from Proximity Caves 5578 | -7/Lower Caves | Identified exit to Zion 5579 | -7/Lower Caves | Entered Zion 5605 | -7/Zion | Found Prototype Device 5606 | -7/Zion | Identified Mobile Refinery Mk. CCLXVII 5709 | -7/Zion | Discovered new exit (range 14) 5937 | -7/Zion | Given the Hacking Drone Bay 5939 | -7/Zion | Found Prototype Device 5939 | -7/Zion | Identified Hacking Drone Bay 6072 | -7/Zion | Learned location of Data Miner (-6) 6082 | -7/Zion | Learned location of Warlord (-5) 6220 | -7/Zion | Found Prototype Device 6220 | -7/Zion | Identified Bomb Factory No. 2 6354 | -7/Zion | Met Imprinter 6372 | -7/Zion | Imprinted 6374 | -7/Zion | Declared Zion's savior 6683 | -7/Zion | Identified exit to Proximity Caves 6684 | -7/Zion | Entered Proximity Caves 6684 | -6/Proximity Caves | Accompanied by 4 allies 6728 | -6/Proximity Caves | Spotted B-75 Beast 6756 | -6/Proximity Caves | Destroyed B-75 Beast 6784 | -6/Proximity Caves | Lost 3 parts (2n1u) 6793 | -6/Proximity Caves | Spotter reported a threat 6821 | -6/Proximity Caves | Spotter reported a threat 6962 | -6/Proximity Caves | Spotter reported a threat 7030 | -6/Proximity Caves | Spotter reported a threat 7060 | -6/Proximity Caves | Build established: Mutant 7083 | -6/Proximity Caves | Spotter reported a threat 7108 | -6/Proximity Caves | Entered Factory 7108 | -6/Factory | Accompanied by 3 allies 7108 | -6/Factory | Evolved 2 slots: Power x1, Propulsion x1 7109 | -6/Factory | Loaded intel: 87 trap records 7298 | -6/Factory | Lost 3 allies 7327 | -6/Factory | Retrieved Zion intel report: Main Access 7327 | -6/Factory | Identified exit to Factory 7408 | -6/Factory | Sucked down chute 7408 | -6/Factory | Entered Waste 7438 | -6/Waste | Spotted C-40 Crusher 7454 | -6/Waste | Spotted C-40 Crusher 7455 | -6/Waste | Spotted C-40 Crusher 7458 | -6/Waste | Spotted C-40 Crusher 7458 | -6/Waste | Spotted C-40 Crusher 7461 | -6/Waste | Spotted C-40 Crusher 7461 | -6/Waste | Crushed by Compactor (1 part destroyed, 1 dropped) 7480 | -6/Waste | Crushed by Compactor (1 part destroyed, 2 dropped) 7492 | -6/Waste | Discovered new exit (range 11) 7500 | -6/Waste | Entered Factory 7595 | -6/Factory | Retrieved Zion intel report: Branch Access 7595 | -6/Factory | Identified exit to Lower Caves 7636 | -6/Factory | Retrieved Zion intel report: Emergency Access 7637 | -6/Factory | Zion Heavy squad teleported in 7767 | -6/Factory | Found Prototype Protection 7767 | -6/Factory | Identified Zio. Weapon Casing 7815 | -6/Factory | Build established: Sprinter 7979 | -6/Factory | Retrieved Zion intel report: Prototype Schematics 7985 | -6/Factory | Entered Lower Caves 8041 | -6/Lower Caves | Spotted B-75 Beast 8088 | -6/Lower Caves | Identified exit to Lower Caves 8107 | -6/Lower Caves | Learned Factory stockpile data 8113 | -6/Lower Caves | Entered another Lower Caves area 8181 | -6/Lower Caves | Learned Factory terminal intel 8216 | -6/Lower Caves | Discovered new exit (range 3) 8216 | -6/Lower Caves | Identified exit to Data Miner 8217 | -6/Lower Caves | Entered Data Miner 8217 | -6/Data Miner | Discovered new exit (range 7) 8222 | -6/Data Miner | Met Data Miner 8227 | -6/Data Miner | Learned location of Section 7 (-2) 8227 | -6/Data Miner | Acquired the access code to Warlord's prototype stash 8232 | -6/Data Miner | Received God Mode back door access code from Data Miner 8239 | -6/Data Miner | Identified exit to Proximity Caves 8239 | -6/Data Miner | Entered Proximity Caves 8352 | -5/Proximity Caves | Learned 8 Factory zone layouts 8387 | -5/Proximity Caves | Discovered exit to Factory (range 5) 8388 | -5/Proximity Caves | Entered Factory 8388 | -5/Factory | Evolved 2 slots: Propulsion x1, Utility x1 8389 | -5/Factory | Identified exit to Upper Caves 8391 | -5/Factory | Loaded intel: 25 terminal locations 8456 | -5/Factory | Retrieved Zion intel report: Main Access 8456 | -5/Factory | Identified exit to Factory 8518 | -5/Factory | Fabricated Impulse Thruster Array? 8558 | -5/Factory | Fabricated G-50 Soldier (x3) 8623 | -5/Factory | Retrieved Zion intel report: Emergency Access 8634 | -5/Factory | Retrieved Zion intel report: Unaware Analyses 8655 | -5/Factory | Retrieved Zion intel report: Active Garrisons 8663 | -5/Factory | Retrieved Zion intel report: Trap Installations 8691 | -5/Factory | Retrieved Zion intel report: Unaware Schematics 8692 | -5/Factory | Zion Infowar Resupply teleported in 8971 | -5/Factory | Entered Upper Caves 9003 | -5/Upper Caves | A Derelict revealed a hidden shortcut to "reach the base" 9003 | -5/Upper Caves | Identified exit to Warlord 9003 | -5/Upper Caves | Entered Warlord 9010 | -5/Warlord | Discovered new exit (range 14) 9061 | -5/Warlord | Learned Armory emergency access door positions 9061 | -5/Warlord | Learned 4 Research zone layouts 9061 | -5/Warlord | Learned 4 Testing zone layouts 9062 | -5/Warlord | Learned Factory recycling unit intel 9080 | -5/Warlord | Opened Warlord's prototype stash 9086 | -5/Warlord | Found Prototype Processor 9093 | -5/Warlord | Found Prototype Reactor 9130 | -5/Warlord | Rebuked by Warlord 9136 | -5/Warlord | Warlord's base attacked by MAIN.C 9165 | -5/Warlord | Found Prototype Energy Gun 9165 | -5/Warlord | Identified Vortex Shotgun 9171 | -5/Warlord | Identified Vortex Chain Reactor 9176 | -5/Warlord | Found Vortex Shotgun 9181 | -5/Warlord | Found Prototype Piercing Weapon 9181 | -5/Warlord | Identified Vortex Lance 9184 | -5/Warlord | Found Vortex Shotgun 9188 | -5/Warlord | Found Vortex Shotgun 9247 | -5/Warlord | Opened side exit 9253 | -5/Warlord | Identified exit to Proximity Caves 9253 | -5/Warlord | Entered Proximity Caves 9441 | -4/Proximity Caves | Spotted B-86 Titan 9455 | -4/Proximity Caves | Discovered exit to Factory (range 11) 9457 | -4/Proximity Caves | Entered Factory 9457 | -4/Factory | Evolved 2 slots: Utility x2 9458 | -4/Factory | Loaded intel: 8 recycling unit locations 9458 | -4/Factory | Identified Exp. Armor Integrity Analyzer 9773 | -4/Factory | Spotted B-86 Titan 9773 | -4/Factory | Retrieved Zion intel report: Branch Access 9773 | -4/Factory | Identified exit to Upper Caves 9773 | -4/Factory | Identified exit to Extension 9773 | -4/Factory | Identified exit to Armory 9774 | -4/Factory | Zion Heavy squad teleported in 9844 | -4/Factory | Entered Extension 9855 | -4/Extension | Zion Light squad teleported in 9944 | -4/Extension | Rescued a captive Derelict 9965 | -4/Extension | Rescued a captive Derelict 9966 | -4/Extension | Rescued a captive Derelict 9974 | -4/Extension | Retrieved Zion intel report: Prototype Schematics 10000 | -4/Extension | Energy Cycler disabled 10000 | -4/Extension | Rescued a captive Derelict 10002 | -4/Extension | Rescued a captive Derelict 10004 | -4/Extension | Rescued a captive Derelict 10004 | -4/Extension | Retrieved Zion intel report: Component Schematics 10004 | -4/Extension | Rescued a captive Derelict 10005 | -4/Extension | Zion Recon squad teleported in 10072 | -4/Extension | Lost 4 allies 10425 | -4/Extension | Build established: Scavenger-Mutant 10652 | -4/Extension | Spotted B-86 Titan 10665 | -4/Extension | Allies destroyed B-86 Titan 10674 | -4/Extension | Discovered new exit (range 16) 10675 | -4/Extension | Spotted B-86 Titan 10691 | -4/Extension | Allies destroyed B-86 Titan 10694 | -4/Extension | Disrupted transfer network 10735 | -4/Extension | Extracted ID and sensor layout for unrecognized location from A7's data core 10837 | -4/Extension | Discovered new exit (range 16) 10838 | -4/Extension | Discovered new exit (range 15) 10872 | -4/Extension | Disrupted transfer network 10921 | -4/Extension | Lost 5 allies 10947 | -4/Extension | Destroyed 10 combat bots 11076 | -4/Extension | Zion Hacker squad teleported in 11120 | -4/Extension | Retrieved Zion intel report: Unaware Schematics 11121 | -4/Extension | Zion Fire squad teleported in 11142 | -4/Extension | Terminal network hard line cut 11272 | -4/Extension | Entered Cetus 11272 | -4/Cetus | Accompanied by 10 allies 11288 | -4/Cetus | Spotted Cetus Guard 11288 | -4/Cetus | Spotted Cetus Guard 11290 | -4/Cetus | Spotted Cetus Guard 11290 | -4/Cetus | Spotted Cetus Guard 11296 | -4/Cetus | Allies destroyed Cetus Guard 11299 | -4/Cetus | Destroyed Cetus Guard 11301 | -4/Cetus | Destroyed Cetus Guard 11301 | -4/Cetus | Allies destroyed Cetus Guard 11365 | -4/Cetus | Discovered new exit (range 15) 11390 | -4/Cetus | Entered Archives 11390 | -4/Archives | Accompanied by 7 allies 11426 | -4/Archives | Discovered new exit (range 15) 11444 | -4/Archives | Discovered new exit (range 13) 11465 | -4/Archives | Entered Hub_04(d) 11465 | -4/Hub_04(d) | Accompanied by 7 allies 11512 | -4/Hub_04(d) | Zion Hacker squad teleported in 11635 | -4/Hub_04(d) | Spotted B-86 Titan 11640 | -4/Hub_04(d) | Allies destroyed B-86 Titan 11651 | -4/Hub_04(d) | Garrison activated, responded to threat 11656 | -4/Hub_04(d) | Zion Light squad teleported in 11715 | -4/Hub_04(d) | First assault squad dispatched 11738 | -4/Hub_04(d) | Incoming assault squad redirected 11752 | -4/Hub_04(d) | Discovered new exit (range 11) 11753 | -4/Hub_04(d) | Zion Defense Resupply teleported in 11753 | -4/Hub_04(d) | Incoming investigation squad redirected 11757 | -4/Hub_04(d) | Incoming assault squad redirected 11761 | -4/Hub_04(d) | Lost 11 allies 11820 | -4/Hub_04(d) | Core integrity fell below 50% 11838 | -4/Hub_04(d) | Core integrity fell below 20% 11848 | -4/Hub_04(d) | Discovered new exit (range 8) 11851 | -4/Hub_04(d) | Destroyed 9 combat bots 11862 | -4/Hub_04(d) | Network Hub disabled 11862 | -4/Hub_04(d) | Destroyed self via exploding Network Hub Last Messages --------------- 11835_ Slug penetrates Wall. 11835_ Penetrated by Slug. 11835_ Slug penetrates Wall. 11837_ K-01 Serf collects debris. 11837_ Dropped Adv. ECM Suite. 11837_ Adv. Myomer Leg severed. 11838_ Penetrated by Slug. 11838_ Imp. Hacking Suite destroyed. 11842_ K-01 Serf collects debris. 11848_ EXIT=FOUND 11849_ Slug penetrates Wall. 11852_ Penetrated by Slug. 11853_ Detecting system override signal. 11858_ Slug penetrates Wall. 11860_ Penetrated by Slug. 11862_ ALERT: Network intrusion management efficiency reduced by 20%. Dispatching hub defense squads. All non-combat units evacuate. 11862_ Network Hub explodes. 11862_ Vortex Shotgun destroyed. 11862_ Destroyed Vortex Shotgun. Map ----- +----------------------------------------------------+ | ?????????????????????????????????????????????????? | | ?????????????????????????????????????????????????? | | ?????????????????????????????????????????????????? | | ?????????????????????????????????????????????????? | | ?????????????????????????????????????????????????? | | ???????????????????????????????????????? ????????? | | ??????????????????????????????????????? ???????? | | ???????????????????????????????????????# ???????? | | ???????????????????????????????????????# ???????? | | ???????????????????????????????????????+ #+?????? | | ???????????????????????????????????????? ??#### | | ???????????????????????????????????????? ??# | | ????????????????????????????????????????? #?# | | ????????????????????????????????????????? ### "" | | ????????????????????????#+#??????????????? ## | | ????????????????????????# #???????????????# ## "" | | ????????????????????????# #???????????????# ## | | ????????????????????????# #???????????????# ## "" | | ??????????????????????### ##????????+#???## ## | | ??????????????????????# ######### ##### # " | | ??????????????????????+ = % * # | | ??????????????????????# < |%= !!" "" | | ??????????????????????# #######+#######!!!!# | | ??????????????????????##Y ###??# ###!%##### | | ???????????????????????# ; ???# T """" #?#*^#??? | | ???????????????????????# @#????# """" ###=^#?? | | ???????????????????????# ; ???# """" ##!=%#?? | | ???????????????????????# ?# """" ###=!## | | ???????????????????####; ;;;;# ## # | | ???????????????????#! ] # """" ## # | | ???????????????????# ; """" ## < + | | ???????????????????# ; """" ## # | | ???????????????????# # """" ### ## ? | | ???????????????????# # #?# #?? ? | | ???????????????????# #! """" ### #?? | | ???????????????????# # """ + ! #??? | | ???????????????????; * ; " " ##%!#??? | | ???????????????????; ; " %/=#%[[#???? | | ?????????????????? #! # !*=*%!=#???? | | ???????????????????##;##;;#;;;"" =*%/ [*=#???? | | ????????????????????????##?#####] = ==%%!###???? | | ???????????????????????????????########!# ! #????? | | ??????????????????????????????????????### # #???? | | ?????????????????????????????????????????# ## #??? | | ?????????????????????????????????????????? #?# #?? | | ??????????????????????????????????????????##??# #? | | ???????????????????????????????????????????????# # | | ????????????????????????????????????????????????# | | ?????????????????????????????????????????????????# | | ?????????????????????????????????????????????????? | +----------------------------------------------------+ Best States ------------- Heat Dissipation 62 Coolant Potential 80 Energy Generation 55 Energy Capacity 700 Matter Stores 300 Matter Capacity 800 Sight Range 16 Robot Scan Range 16 Terrain Scan Density 10 ECM Strength 2 Jamming Range 14 Cloak Strength 2 Additional Mass Support 12 Armor Coverage 600 Core Shielding 20 Power Shielding 66 Propulsion Shielding 66 Weapon Shielding 100 Evasion (%) 75 Targeting Accuracy 8 Armor Integrity Analysis 50 Recoil Reduction 6 Offensive Hacking 12 Defensive Hacking 12 Item Schematics ----------------- Imp. Heavy Laser | -6/Factory | Z-intel Prc. Rocket Launcher | -6/Factory | Z-intel F-cell Engine | -6/Factory | Z-intel Antimatter Cannon | -6/Factory | Z-intel Adv. Beam Rifle | -6/Factory | Z-intel Prc. Grenade Launcher | -6/Factory | Z-intel Imp. Cesium-ion Thruster | -6/Factory | Z-intel Biomechanical Wings | -6/Factory | Z-intel Hvy. Deuterium Engine | -6/Factory | Z-intel Prc. Assault Rifle | -6/Factory | Z-intel Combat Drone Bay | -6/Data Miner | Free Lgt. Regenerative Plating | -6/Data Miner | Free Enh. Flexi-carbon Leg | -6/Data Miner | Free Exp. Heat Sink | -6/Data Miner | Free Imp. KE Penetrator | -6/Data Miner | Free Field Propulsion Array | -6/Data Miner | Free Com. HERF Cannon | -6/Data Miner | Free Imp. Force Field | -6/Data Miner | Free Phase Gun | -6/Data Miner | Free Shield Leg | -6/Data Miner | Free Imp. Matter Compressor | -4/Extension | Z-intel Cld. Phase Cannon | -4/Extension | Z-intel Adv. Gravity Neutralizer | -4/Extension | Z-intel Prc. Energy Filter | -4/Extension | Z-intel Cld. Cesium-ion Thruster | -4/Extension | Z-intel Lgt. Neutrino Core | -4/Extension | Z-intel Adv. Dynamic Insulation System | -4/Extension | Z-intel Cld. Plasma Rifle | -4/Extension | Z-intel Stealth Drone Bay | -4/Extension | Z-intel Hvy. Antimatter Reactor | -4/Extension | Z-intel Launcher Loader | -4/Extension | Z-intel Adv. Coolant Injector | -4/Extension | Z-intel Imp. Shock Absorption System | -4/Extension | Z-intel Adv. Melee Analysis Suite | -4/Extension | Z-intel Adv. Plasma Cannon | -4/Extension | Z-intel Adv. Sensor Array | -4/Extension | Z-intel Hrd. Heavy Armor Plating | -4/Extension | Z-intel Imp. Weapon Cycler | -4/Extension | Z-intel Adv. Surge Thruster | -4/Extension | Z-intel Hpw. Shock Rifle | -4/Extension | Z-intel Seismic Detector | -4/Extension | Z-intel Arm. Huge Wheel | -4/Extension | Z-intel Robot Schematics ------------------ B-60 Warrior | -6/Data Miner | Free R-10 Processor | -6/Data Miner | Free E-15 Imp | -6/Data Miner | Free G-50 Soldier | -6/Data Miner | Free A-27 Freighter | -6/Data Miner | Free Y-64 Sentinel | -5/Factory | Z-intel A-15 Conveyor | -5/Factory | Z-intel K-01 Serf | -5/Factory | Z-intel A-02 Transporter | -4/Extension | Z-intel X-72 Disruptor | -4/Extension | Z-intel X-77 Beamer | -4/Extension | Z-intel L-61 Swordsman | -4/Extension | Z-intel Fabricated ------------ Impulse Thruster Array | x1 | -5/Factory | Preloaded G-50 Soldier | x3 | -5/Factory | Preloaded Repaired ---------- Nothing Studied --------- Xenon Bombardment Thruster | -6/Factory | Hacked Fission Core | -6/Factory | Hacked Nuclear Pulse Thruster | -5/Factory | Hacked Lgt. Angular Momentum Engine | -5/Factory | Hacked Alien Tech Used ----------------- None Achievements -------------- None Challenges ------------ None Game ------ Seed NeutrinoGammaGreatsword Manual? 0 Play Time 02:31:21 Cumulative 483.5 hours Start 2025.12.19 @ 20:13:25 End 2025.12.22 @ 21:39:34 Sessions 5 Manual Loads 0 Difficulty Rogue Special Mode None Game No. 194 Rogue 121 Adventurer 68 Explorer 5 Win Type - Total 38 Types 20/3/4/4/3/0/1/1/0/2 Lore% 82 Gallery% 79 Achievement% 63 Wizard Run 0 Options --------- Layout 0 ASCII 0 Keyboard 0 Movement Numpad Keybinds 0 Fullscreen 1 Font 24/Smallcaps Map View 76x50 Zoom Use 0% Tactical HUD 1 Map Filters NONE Filters NONE Steam 1 RUN: a2dd8f14-a191-46d3-bddc-2ff20d66dc70